bitfinex-derivatives/quotes_SOLF0:USTF0_20241217
["timestamp","ask_amount","ask_price","bid_price","bid_amount"]
[1734478477752,2.2487,222.32,222.27,2.2492]
[1734478477957,2.2487,222.32,222.28,2.42]
[1734478478158,2.2485,222.34,222.28,4.669]
[1734478478654,10.69863324,222.38,222.28,2.42]
[1734478478859,2.2483,222.36,222.31,2.2487]
[1734478479052,10.69863324,222.38,222.31,2.2487]
[1734478479455,2.2484,222.35,222.31,2.2487]
[1734478480258,2.2484,222.35,222.29,2.2489]
[1734478480558,10.69863324,222.38,222.28,2.42]
[1734478481060,10.69863324,222.38,222.31,2.2488]
[1734478481259,10.69863324,222.38,222.28,2.42]
[1734478481657,10.69863324,222.38,222.29,2.2489]
[1734478481856,16.23201324,222.38,222.29,2.2489]
[1734478482560,2.2486,222.34,222.29,2.2489]
[1734478482756,2.2486,222.34,222.25,6.9227]
[1734478482757,10.69863324,222.35,222.25,1.4444]
[1734478482959,10.69863324,222.32,222.25,1.4444]
[1734478483355,10.69863324,222.29,222.21,2.42]
[1734478484159,2.2493,222.26,222.22,2.2496]
[1734478485059,10.69863324,222.29,222.21,2.42]
[1734478485261,10.69863324,222.37,222.22,10.69863324]
[1734478485654,2.2486,222.33,222.28,2.249]
[1734478485963,2.2486,222.33,222.29,2.42]
[1734478486158,2.2486,222.33,222.3,2.42]
[1734478486365,2.2484,222.35,222.3,4.6688]
[1734478486560,153.53237859,222.43,222.3,2.42]
[1734478486760,2.2485,222.34,222.3,2.42]
[1734478486963,10.69863324,222.37,222.3,2.42]
[1734478488058,2.2486,222.34,222.3,2.42]
[1734478488261,10.69863324,222.4,222.3,2.42]
[1734478488567,2.2482,222.37,222.31,2.2487]
[1734478488762,11.23997819,222.39,222.31,2.2487]
[1734478489361,11.23997819,222.39,222.3,2.42]
[1734478489558,10.69863324,222.36,222.3,2.42]
[1734478491472,2.2487,222.32,222.3,2.42]
[1734478491667,10.69863324,222.36,222.3,2.42]
[1734478492066,2.2486,222.33,222.3,2.42]
[1734478492466,2.2486,222.33,222.29,4.669]
[1734478496068,2.2485,222.34,222.29,2.42]
[1734478496267,10.69863324,222.4,222.29,2.42]
[1734478496463,11.25124462,222.39,222.29,2.42]
[1734478496668,2.2483,222.36,222.32,2.2487]
[1734478497371,2.2482,222.37,222.33,2.2486]
[1734478498263,2.2483,222.36,222.32,2.2487]
[1734478499673,2.2484,222.35,222.32,2.2487]
[1734478500470,10.69863324,222.4,222.29,2.42]
[1734478500672,10.69863324,222.37,222.29,2.42]
[1734478500980,2.2484,222.35,222.29,2.42]
[1734478501169,10.69863324,222.37,222.29,2.42]
[1734478501569,2.2482,222.37,222.31,2.2488]
[1734478501770,10.69863324,222.4,222.29,2.42]
[1734478502075,10.69863324,222.43,222.29,13.11863324]
[1734478502274,18.93478017,222.42,222.3,1.5259]
[1734478502469,11.25950164,222.42,222.3,1.5259]
[1734478502666,2.2482,222.37,222.3,1.5259]
[1734478503272,2.2482,222.37,222.32,2.2487]
[1734478503576,2.2482,222.37,222.3,1.5259]
[1734478503772,2.2482,222.37,222.34,2.2485]
[1734478504083,2.2482,222.37,222.35,2.42]
[1734478505974,5.36832792,222.42,222.35,2.42]
[1734478506173,16.63426756,222.42,222.35,2.42]
[1734478506380,5.36832792,222.42,222.35,2.42]
[1734478506568,2.2483,222.36,222.35,2.42]
[1734478506773,16.63643343,222.42,222.3,1.5259]
[1734478506774,10.69863324,222.37,222.31,2.42]
[1734478507276,2.2486,222.33,222.31,2.42]
[1734478507877,10.69863324,222.4,222.32,2.2487]
[1734478508075,11.2681194,222.39,222.31,2.42]
[1734478508370,5.36832792,222.42,222.31,2.42]
[1734478508870,2.2482,222.38,222.31,2.42]
[1734478509272,5.36832792,222.42,222.31,2.42]
[1734478509672,16.64169755,222.42,222.31,2.42]
[1734478509979,24.32635128,222.42,222.31,2.42]
[1734478510178,2.2482,222.37,222.33,2.2485]
[1734478510378,2.2482,222.37,222.31,2.42]
[1734478510679,2.2482,222.37,222.32,2.2486]
[1734478510877,2.2482,222.37,222.31,2.42]
[1734478511082,11.27407226,222.41,222.31,2.42]
[1734478511380,2.2481,222.38,222.33,2.2485]
[1734478512281,2.2481,222.38,222.34,2.42]
[1734478512487,2.2479,222.4,222.34,2.42]
[1734478513283,2.2478,222.41,222.37,2.2482]
[1734478513484,337.36776088,222.47,222.36,10.69863324]
[1734478513779,279.74959898,222.51,222.36,10.69863324]
[1734478513780,153.53237859,222.51,222.36,10.69863324]
[1734478513978,18.97359248,222.5,222.36,10.69863324]
[1734478514184,2.2473,222.46,222.42,2.2476]
[1734478514481,2.2473,222.46,222.43,2.42]
[1734478514676,18.97089746,222.51,222.43,2.42]
[1734478514876,2.2472,222.48,222.43,4.6676]
[1734478515382,12.97447169,222.52,222.43,2.42]
[1734478515687,2.2473,222.46,222.43,2.42]
[1734478515882,11.28153472,222.51,222.43,2.42]
[1734478516186,5.28456867,222.52,222.4,1.5872]
[1734478516187,29.66504553,222.5,222.4,1.5872]
[1734478516388,10.69863324,222.47,222.39,2.42]
[1734478516781,10.69863324,222.5,222.39,2.42]
[1734478517087,18.95079136,222.49,222.4,2.2478]
[1734478517295,7.68163948,222.48,222.39,2.42]
[1734478517983,7.68163948,222.48,222.39,13.11863324]
[1734478518285,153.53237859,222.55,222.42,10.69863324]
[1734478518490,26.54240193,222.54,222.42,10.69863324]
[1734478518793,11.26493989,222.53,222.42,10.69863324]
[1734478519087,2.247,222.49,222.45,2.2473]
[1734478519386,2.247,222.49,222.46,2.42]
[1734478520092,2.2469,222.51,222.46,2.42]
[1734478520285,5.31066995,222.54,222.46,2.42]
[1734478520789,2.2468,222.51,222.47,2.2472]
[1734478521183,5.31066995,222.54,222.46,2.42]
[1734478521491,10.69863324,222.59,222.46,2.42]
[1734478521789,18.93094151,222.58,222.46,2.42]
[1734478521985,2.2467,222.52,222.47,2.2471]
[1734478522590,11.25787302,222.58,222.47,2.2471]
[1734478522785,5.51827148,222.57,222.46,2.42]
[1734478522986,2.42,222.61,222.48,10.69863324]
[1734478523284,155.34577859,222.63,222.5,2.2468]
[1734478523285,18.92177613,222.62,222.5,2.2468]
[1734478523486,10.69863324,222.57,222.51,2.42]
[1734478524594,10.69863324,222.57,222.49,2.42]
[1734478525290,2.2469,222.5,222.49,2.42]
[1734478525791,10.69863324,222.57,222.46,2.42]
[1734478526288,10.69863324,222.48,222.41,2.42]
[1734478526892,10.69863324,222.45,222.34,4.5364]
[1734478527091,10.69863324,222.45,222.35,2.42]
[1734478527491,2.2482,222.37,222.35,2.42]
[1734478529097,2.42,222.48,222.35,2.42]
[1734478529098,2.2483,222.36,222.35,2.42]
[1734478529491,10.69863324,222.39,222.32,2.42]
[1734478531597,2.2484,222.35,222.32,2.42]
[1734478531798,2.42,222.43,222.32,2.42]
[1734478531996,2.2481,222.39,222.32,2.42]
[1734478532299,2.2481,222.39,222.34,2.2485]
[1734478532898,10.69863324,222.43,222.32,2.42]
[1734478533299,2.2483,222.36,222.32,4.6687]
[1734478533797,10.69863324,222.43,222.32,2.42]
[1734478533989,10.69863324,222.43,222.34,2.2484]
[1734478534390,10.69863324,222.43,222.32,2.42]
[1734478534602,10.69863324,222.4,222.32,2.42]
[1734478534894,10.69863324,222.4,222.26,3.0614]
[1734478535102,10.69863324,222.4,222.27,2.4]
[1734478535507,2.2489,222.3,222.26,3.0614]
[1734478535698,2.2489,222.3,222.27,2.4]
[1734478535909,10.69863324,222.34,222.26,1.525]
[1734478536102,2.2491,222.28,222.23,2.2495]
[1734478536308,2.2491,222.28,222.24,2.4]
[1734478536806,2.2492,222.27,222.24,2.4]
[1734478538008,2.2492,222.27,222.22,2.2497]
[1734478538208,2.2492,222.27,222.23,2.4]
[1734478539001,2.2493,222.26,222.23,2.4]
[1734478539503,10.69863324,222.34,222.23,2.4]
[1734478539504,2.2494,222.25,222.23,2.4]
[1734478539701,2.2494,222.25,222.21,3.7291]
[1734478539702,10.69863324,222.31,222.21,2.4]
[1734478540301,10.69863324,222.28,222.21,2.4]
[1734478540507,10.69863324,222.28,222.19,3.915]
[1734478542014,10.69863324,222.31,222.19,3.915]
[1734478542209,10.69863324,222.31,221.96,4.5045]
[1734478542210,10.69863324,222.22,221.96,4.5045]
[1734478542406,10.69863324,222.19,222.04,10.69863324]
[1734478542605,10.69863324,222.19,222.05,1.5485]
[1734478543116,2.2506,222.13,222.09,2.251]
[1734478543414,10.69863324,222.19,222.06,5.41083063]
[1734478543813,10.69863324,222.19,222.06,6.94823063]
[1734478544513,2.2505,222.15,222.1,2.2509]
[1734478545012,2.2505,222.15,222.09,2.42]
[1734478545013,2.2505,222.14,222.09,4.671]
[1734478545410,2.2505,222.14,222.09,2.251]
[1734478545612,2.2508,222.12,222.07,2.2511]
[1734478545907,10.69863324,222.16,222.06,1.5374]
[1734478546719,10.69863324,222.16,222.06,3.9574]
[1734478546923,2.2508,222.12,222.06,6.2087]
[1734478547314,10.69863324,222.16,222.06,6.2087]
[1734478547518,2.2508,222.11,222.06,6.2087]
[1734478547917,2.2507,222.12,222.07,2.2512]
[1734478548116,10.69863324,222.16,222.05,1.5485]
[1734478548315,10.69863324,222.16,222.02,2.42]
[1734478548316,10.69863324,222.13,222.02,2.42]
[1734478549218,10.69863324,222.1,222.02,2.42]
[1734478550219,2.2514,222.06,222.02,2.42]
[1734478551021,2.2512,222.08,222.04,2.2515]
[1734478551430,10.69863324,222.13,222.02,2.42]
[1734478551617,2.2509,222.1,222.06,2.2513]
[1734478551814,2.2509,222.1,222.02,2.42]
[1734478552018,10.69863324,222.13,222.02,2.42]
[1734478552216,2.2508,222.11,222.07,2.2512]
[1734478552419,2.2508,222.11,222.02,2.42]
[1734478552824,16.0235061,222.16,222.02,3.9876]
[1734478553028,16.0235061,222.16,222.03,1.5055]
[1734478553426,16.0235061,222.16,222.07,2.2511]
[1734478553427,2.2507,222.12,222.07,2.2511]
[1734478553626,2.2507,222.12,222.07,4.6711]
[1734478553830,2.2507,222.12,222.07,2.42]
[1734478554020,2.2507,222.12,222.08,2.2511]
[1734478554224,2.2509,222.11,222.07,2.42]
[1734478554423,10.69863324,222.12,222.07,2.42]
[1734478554718,5.32487286,222.16,222.04,2.42]
[1734478554719,10.69863324,222.09,222.04,2.42]
[1734478555126,10.69863324,222.06,221.99,2.252]
[1734478555318,10.69863324,222.06,221.99,4.672]
[1734478555719,10.69863324,222.06,221.99,2.252]
[1734478555931,10.69863324,222.06,221.99,4.672]
[1734478556121,2.2516,222.04,221.99,4.672]
[1734478557828,2.2516,222.04,221.89,1.5055]
[1734478557829,2.2522,221.98,221.93,2.2526]
[1734478558030,10.69863324,222.0,221.89,1.5055]
[1734478559122,10.69863324,222.03,221.89,12.20413324]
[1734478560125,2.2518,222.01,221.93,2.2526]
[1734478560325,5.44765247,222.04,221.94,2.42]
[1734478560530,10.69863324,222.06,221.95,14.57783324]
[1734478560725,10.69863324,222.06,221.96,2.42]
[1734478561130,12.95003324,222.06,221.96,2.42]
[1734478561523,12.95003324,222.06,221.96,3.944]
[1734478561930,2.2516,222.03,221.99,2.252]
[1734478562131,2.2516,222.03,221.96,3.944]
[1734478563631,2.2516,222.03,221.99,2.252]
[1734478563932,2.2516,222.04,221.99,2.252]
[1734478564226,10.69863324,222.06,221.99,2.252]
[1734478564433,2.2517,222.03,221.98,2.2521]
[1734478564835,10.69863324,222.03,221.95,1.4592]
[1734478565031,10.69863324,222.03,221.96,4.6723]
[1734478565332,10.69863324,222.09,221.9,1.4874]
[1734478565333,10.69863324,222.0,221.9,1.4874]
[1734478565535,2.2523,221.97,221.93,2.42]
[1734478565735,10.69863324,222.0,221.93,2.42]
[1734478566333,10.69863324,222.0,221.92,2.2526]
[1734478566635,2.2524,221.96,221.92,4.6726]
[1734478567133,2.2522,221.97,221.93,2.2526]
[1734478569134,2.2522,221.97,221.89,1.5055]
[1734478569135,10.69863324,222.0,221.89,1.5055]
[1734478569330,10.69863324,222.0,221.91,2.2527]
[1734478569736,10.69863324,222.0,221.89,3.9255]
[1734478570130,2.2524,221.95,221.91,2.2528]
[1734478570337,5.45360659,221.99,221.89,3.9255]
[1734478570338,10.69863324,221.97,221.89,3.9255]
[1734478570638,2.2526,221.94,221.89,2.253]
[1734478571136,10.69863324,221.97,221.89,2.253]
[1734478571338,2.2526,221.93,221.89,2.253]
[1734478571836,2.2526,221.93,221.88,2.42]
[1734478572734,10.69863324,221.97,221.88,2.42]
[1734478573036,5.45360659,221.99,221.88,2.42]
[1734478573037,5.45360659,221.99,221.89,10.69863324]
[1734478573231,5.36694453,222.04,221.92,10.69863324]
[1734478573432,2.2517,222.02,221.93,2.42]
[1734478573737,2.2517,222.02,221.94,1.5479]
[1734478573938,2.2517,222.02,221.98,2.252]
[1734478574135,10.69863324,222.07,221.98,2.42]
[1734478574136,2.2516,222.03,221.98,2.42]
[1734478574338,5.51139758,222.05,221.98,2.42]
[1734478574733,2.2515,222.04,222.0,2.2518]
[1734478575040,155.00677859,222.13,221.98,2.42]
[1734478575041,10.69863324,222.1,221.98,2.42]
[1734478575241,165.70541183,222.13,221.98,13.11863324]
[1734478575543,10.69863324,222.13,221.98,13.11863324]
[1734478576437,5.27855467,222.14,222.01,10.69863324]
[1734478576637,164.23101183,222.16,222.02,1.5057]
[1734478576638,10.69863324,222.16,222.02,1.5057]
[1734478576842,10.69863324,222.16,222.11,2.2508]
[1734478577140,42.05310946,222.21,222.09,2.42]
[1734478577341,7.60415613,222.2,222.13,2.2506]
[1734478577638,10.69863324,222.19,222.1,2.42]
[1734478577940,5.35425613,222.2,222.1,2.42]
[1734478577941,2.2504,222.15,222.1,2.42]
[1734478578139,10.69863324,222.16,222.1,2.42]
[1734478579034,2.2506,222.13,222.1,2.42]
[1734478579240,10.69863324,222.13,222.1,2.42]
[1734478579438,10.69863324,222.13,222.07,2.42]
[1734478580036,2.2508,222.11,222.07,2.42]
[1734478580433,10.69863324,222.13,222.07,2.42]
[1734478581546,2.251,222.1,222.07,2.42]
[1734478581845,10.69863324,222.13,222.07,2.42]
[1734478582839,2.2511,222.09,222.07,2.42]
[1734478583246,194.53401553,222.17,222.07,2.42]
[1734478583447,2.2505,222.14,222.07,2.42]
[1734478584441,11.22372673,222.16,222.07,2.42]
[1734478584642,2.2504,222.15,222.07,2.42]
[1734478584946,11.22372673,222.16,222.07,2.42]
[1734478585246,16.05288937,222.2,222.07,13.11863324]
[1734478585545,11.22796283,222.19,222.07,13.11863324]
[1734478585742,10.69863324,222.13,222.03,3.986]
[1734478585944,13.62796283,222.19,222.03,3.986]
[1734478585945,10.69863324,222.1,222.03,3.986]
[1734478586337,2.2511,222.09,222.03,6.2375]
[1734478586543,10.69863324,222.1,222.03,3.986]
[1734478586943,10.69863324,222.13,222.03,3.986]
[1734478587142,11.22607708,222.12,222.03,3.986]
[1734478588148,2.251,222.1,222.05,2.2514]
[1734478588352,11.22607708,222.12,222.03,3.986]
[1734478588549,2.2513,222.07,222.03,3.986]
[1734478588852,10.69863324,222.1,222.03,3.986]
[1734478589241,2.2514,222.06,222.03,3.986]
[1734478589446,11.23887178,222.09,222.03,2.4]
[1734478591353,2.2513,222.07,222.03,4.6516]
[1734478591554,11.23887178,222.09,222.03,2.4]
[1734478591956,2.2513,222.06,222.03,2.4]
[1734478592756,11.23887178,222.09,222.03,2.4]
[1734478592953,2.2514,222.05,222.03,2.4]
[1734478593355,11.24771028,222.09,222.03,2.4]
[1734478593652,10.69863324,222.1,222.03,2.4]
[1734478594058,2.2514,222.06,222.03,2.4]
[1734478594259,11.24834497,222.09,222.03,2.4]
[1734478594462,10.69863324,222.1,222.03,2.4]
[1734478595662,10.69863324,222.07,222.03,2.4]
[1734478596267,10.69863324,222.1,222.03,2.4]
[1734478596566,2.2514,222.06,222.03,2.4]
[1734478596761,10.69863324,222.1,222.03,2.4]
[1734478596964,11.24707258,222.09,221.97,5.34494079]
[1734478597164,11.24707258,222.09,221.98,2.4]
[1734478597363,2.2516,222.04,221.99,2.2519]
[1734478597867,2.2516,222.04,221.98,2.4]
[1734478598664,2.2516,222.04,221.99,2.252]
[1734478598963,2.2518,222.02,221.94,0.20391]
[1734478599170,10.69863324,222.07,221.97,2.2521]
[1734478599463,10.69863324,222.07,221.95,2.4]
[1734478599663,10.69863324,222.07,221.96,2.4]
[1734478599664,2.2517,222.03,221.96,2.4]
[1734478599869,2.2517,222.03,221.98,2.2521]
[1734478600967,10.69863324,222.07,221.98,2.2521]
[1734478601160,2.2517,222.02,221.98,2.2521]
[1734478601361,2.2517,222.02,221.96,2.4]
[1734478601362,10.69863324,222.07,221.96,2.4]
[1734478601967,10.69863324,222.04,221.94,0.20391]
[1734478602465,2.2522,221.98,221.94,2.45641]
[1734478603073,2.2524,221.95,221.94,0.20391]
[1734478604671,10.69863324,221.95,221.83,2.4]
[1734478604865,13.09863324,221.98,221.82,2.4]
[1734478604866,10.69863324,221.92,221.82,2.4]
[1734478605072,10.69863324,221.92,221.83,2.2536]
[1734478605073,2.2532,221.87,221.83,2.2536]
[1734478605272,2.2532,221.87,221.82,2.4]
[1734478605568,10.69863324,221.92,221.81,2.4]
[1734478605967,10.69863324,221.92,221.79,2.254]
[1734478606168,2.2534,221.86,221.79,2.254]
[1734478606366,2.2534,221.86,221.8,2.2539]
[1734478606773,10.69863324,221.92,221.79,10.69863324]
[1734478606970,10.69863324,221.92,221.83,2.2536]
[1734478606971,2.253,221.89,221.83,2.2536]
[1734478608170,10.69863324,221.92,221.83,2.2536]
[1734478608171,2.2532,221.88,221.83,2.2536]
[1734478608371,10.69863324,221.92,221.83,2.2536]
[1734478608778,10.69863324,221.95,221.83,2.4]
[1734478609278,5.50289053,221.93,221.83,2.4]
[1734478610074,10.69863324,221.95,221.83,2.4]
[1734478610273,10.69863324,221.98,221.85,10.69863324]
[1734478610977,2.4,222.0,221.85,10.69863324]
[1734478611475,2.2523,221.97,221.85,10.69863324]
[1734478611876,2.2523,221.97,221.92,2.2527]
[1734478612573,2.2521,221.99,221.94,2.2525]
[1734478613980,10.69863324,221.98,221.91,4.6527]
[1734478614479,10.69863324,221.98,221.91,2.4]
[1734478614680,2.2525,221.95,221.91,2.4]
[1734478614880,10.69863324,221.95,221.86,2.4]
[1734478615181,2.2526,221.93,221.88,2.253]
[1734478615583,10.69863324,221.95,221.88,2.253]
[1734478615978,2.2527,221.93,221.88,2.253]
[1734478616480,2.2527,221.92,221.88,2.253]
[1734478616678,2.2527,221.92,221.86,2.4]
[1734478616882,2.2527,221.92,221.87,2.2532]
[1734478617676,10.69863324,221.95,221.87,2.2532]
[1734478618481,2.2528,221.92,221.87,2.2532]
[1734478618984,2.2525,221.94,221.86,2.4]
[1734478619373,10.69863324,221.98,221.89,2.253]
[1734478619577,2.2526,221.94,221.89,2.253]
[1734478620077,10.69863324,221.98,221.89,2.253]
[1734478620274,10.69863324,221.98,221.86,2.4]
[1734478620778,10.69863324,222.0,221.87,13.63783324]
[1734478620977,10.69863324,222.0,221.95,2.2524]
[1734478621582,10.69863324,222.0,221.94,2.2525]
[1734478622285,10.69863324,222.09,221.93,2.4]
[1734478622286,153.53237859,222.14,221.93,13.09863324]
[1734478622587,10.69863324,222.09,221.96,10.69863324]
[1734478622779,2.2512,222.08,222.0,2.2518]
[1734478622979,10.69863324,222.09,222.01,2.4]
[1734478623386,10.69863324,222.06,222.01,2.4]
[1734478624482,10.69863324,222.03,221.98,2.4]
[1734478624791,10.69863324,222.0,221.94,2.4]
[1734478624989,2.2522,221.97,221.94,2.4]
[1734478625186,10.69863324,222.0,221.94,2.4]
[1734478625386,10.69863324,222.0,221.85,2.9963]
[1734478625387,2.2528,221.92,221.87,2.2532]
[1734478625590,235.46152809,222.08,221.86,2.4]
[1734478625591,10.69863324,221.94,221.86,2.4]
[1734478626286,2.2528,221.91,221.86,2.4]
[1734478627083,2.2529,221.9,221.86,2.4]
[1734478627293,10.69863324,221.91,221.78,1.4616]
[1734478627489,10.69863324,221.98,221.79,2.4]
[1734478627490,10.69863324,221.88,221.79,2.4]
[1734478627790,2.2533,221.87,221.8,2.2539]
[1734478627987,10.69863324,221.88,221.8,2.2539]
[1734478628686,2.2532,221.88,221.8,2.2539]
[1734478628987,10.69863324,221.91,221.8,2.2539]
[1734478629487,2.2532,221.88,221.79,2.4]
[1734478629991,2.2532,221.88,221.83,2.2536]
[1734478630290,2.2532,221.88,221.84,2.4]
[1734478630882,10.69863324,221.94,221.84,2.4]
[1734478631387,2.2529,221.91,221.85,2.2534]
[1734478631580,10.69863324,221.94,221.85,2.2534]
[1734478631783,10.69863324,221.94,221.84,2.4]
[1734478632289,2.4,221.96,221.88,2.2531]
[1734478632491,10.69863324,221.97,221.88,2.2531]
[1734478632897,2.2526,221.94,221.88,2.2531]
[1734478633284,2.2526,221.93,221.89,2.4]
[1734478633485,2.2526,221.93,221.89,4.653]
[1734478634088,153.53237859,222.02,221.89,2.4]
[1734478634288,10.69863324,222.06,221.9,2.9468]
[1734478634482,153.53237859,222.09,221.9,2.9468]
[1734478634483,10.69863324,222.0,221.9,2.9468]
[1734478634689,10.69863324,222.0,221.91,2.4]
[1734478634888,2.2522,221.97,221.92,2.2527]
[1734478635489,2.2522,221.97,221.91,2.4]
[1734478635490,2.2522,221.97,221.93,2.2526]
[1734478636093,2.2523,221.96,221.91,2.2527]
[1734478636294,10.69863324,222.0,221.92,2.4]
[1734478636994,2.2523,221.96,221.91,2.2527]
[1734478637296,2.2523,221.96,221.92,2.4]
[1734478639494,10.69863324,221.97,221.82,10.69863324]
[1734478639688,10.69863324,221.97,221.83,2.4]
[1734478640089,153.53237859,222.01,221.86,2.2533]
[1734478640090,2.2529,221.9,221.86,2.2533]
[1734478640295,2.2529,221.9,221.87,2.4]
[1734478640490,10.69863324,221.91,221.79,13.67303324]
[1734478640697,2.2531,221.89,221.83,2.2535]
[1734478641288,2.2531,221.89,221.71,27.28824787]
[1734478641289,2.2538,221.81,221.75,2.2544]
[1734478641491,10.69863324,221.84,221.73,2.4]
[1734478641787,10.69863324,221.84,221.74,4.6545]
[1734478641788,2.254,221.8,221.74,4.6545]
[1734478641988,2.254,221.8,221.75,2.4]
[1734478642195,10.69863324,221.84,221.75,2.4]
[1734478642592,2.2536,221.83,221.77,2.2542]
[1734478642806,10.69863324,221.94,221.78,10.69863324]
[1734478642997,5.36011155,221.9,221.79,2.4]
[1734478643300,10.69863324,221.94,221.79,2.4]
[1734478643594,2.2528,221.91,221.85,2.2534]
[1734478643897,2.2528,221.91,221.86,2.4]
[1734478645098,10.69863324,221.94,221.86,2.4]
[1734478645099,2.2529,221.9,221.86,2.4]
[1734478645698,2.2531,221.88,221.86,2.4]
[1734478646501,5.40460221,221.92,221.86,2.4]
[1734478647200,10.69863324,221.94,221.86,2.4]
[1734478647496,1.5621,221.95,221.86,2.4]
[1734478648006,2.2527,221.93,221.86,2.4]
[1734478648195,10.69863324,221.94,221.86,2.4]
[1734478648400,2.2527,221.92,221.87,2.4]
[1734478648601,10.69863324,221.94,221.86,2.4]
[1734478649202,10.69863324,221.91,221.86,2.4]
[1734478649907,2.2532,221.88,221.86,2.4]
[1734478650401,2.2527,221.93,221.86,2.4]
[1734478650602,16.09024752,221.95,221.86,2.4]
[1734478651302,2.2527,221.92,221.88,2.253]
[1734478651608,2.2527,221.92,221.89,2.4]
[1734478654307,2.2526,221.93,221.89,4.6529]
[1734478654510,2.2526,221.93,221.89,2.2529]
[1734478654706,2.2526,221.93,221.9,2.4]
[1734478655106,10.69863324,221.98,221.9,2.4]
[1734478657902,365.60212617,222.05,221.9,2.4]
[1734478658111,10.69863324,222.02,221.9,2.4]
[1734478658410,11.2640866,222.01,221.9,2.4]
[1734478658711,2.2523,221.96,221.93,2.2526]
[1734478658909,2.2523,221.96,221.9,2.4]
[1734478659317,2.2522,221.98,221.9,2.4]
[1734478660002,2.2522,221.97,221.93,2.2525]
[1734478660908,2.2522,221.97,221.9,2.4]
[1734478661110,2.2522,221.97,221.94,2.2525]
[1734478661312,2.2522,221.97,221.95,2.4]
[1734478661512,2.2522,221.97,221.96,2.4]
[1734478663124,16.03697022,222.02,221.96,2.4]
[1734478663322,16.03697022,222.02,221.85,4.5135]
[1734478663323,10.69863324,221.99,221.85,15.21213324]
[1734478663522,10.69863324,221.99,221.86,2.4]
[1734478663918,10.69863324,221.99,221.87,2.4]
[1734478664120,11.26107046,221.98,221.87,2.4]
[1734478664525,11.26107046,221.98,221.85,4.5135]
[1734478664728,11.26107046,221.98,221.86,2.4]
[1734478665628,2.2528,221.92,221.86,2.4]
[1734478665928,2.2528,221.92,221.87,2.4]
[1734478666531,2.2528,221.92,221.88,2.2531]
[1734478668128,2.2528,221.92,221.89,2.253]
[1734478668325,11.26107046,221.98,221.87,2.4]
[1734478668633,11.26107046,221.98,221.89,2.2529]
[1734478669524,11.26107046,221.98,221.88,10.69863324]
[1734478669725,5.50164991,222.03,221.88,10.69863324]
[1734478669924,10.69863324,221.98,221.87,2.4]
[1734478670126,10.69863324,221.98,221.88,2.253]
[1734478670632,10.69863324,221.98,221.87,2.4]
[1734478670633,2.2524,221.95,221.87,2.4]
[1734478671033,10.69863324,221.98,221.87,2.4]
[1734478671234,11.27501214,221.97,221.87,2.4]
[1734478671528,177.08205907,222.02,221.92,2.2527]
[1734478671529,34.24831372,222.02,221.92,2.2527]
[1734478671831,34.24831372,222.02,221.93,2.4]
[1734478671832,2.2525,221.94,221.93,2.4]
[1734478677031,11.28119263,221.97,221.96,2.2523]
[1734478677231,11.28119263,221.97,221.93,2.4]
[1734478677232,5.50164991,222.03,221.93,2.4]
[1734478677632,24.47595782,222.03,221.93,2.4]
[1734478677835,11.28229726,222.02,221.96,2.2523]
[1734478678140,5.50164991,222.03,221.96,2.2523]
[1734478678332,5.50164991,222.03,221.93,2.4]
[1734478678333,18.9724148,222.04,221.93,2.4]
[1734478678529,11.28119159,222.04,221.94,3.0532]